bitfinex-derivatives/quotes_SOLF0:USTF0_20230103
["timestamp","ask_amount","ask_price","bid_price","bid_amount"]
[1672709091424,2.0,11.108,11.104,0.06826956]
[1672709091635,2.0,11.108,11.102,0.07072096]
[1672709091843,2.0,11.108,11.101,0.06661449]
[1672709092055,2.0697069,11.108,11.101,0.06902516]
[1672709092574,8.12,11.106,11.101,0.06902516]
[1672709095630,8.1897069,11.108,11.101,0.06902516]
[1672709103197,8.12603997,11.108,11.101,0.06902516]
[1672709104668,8.12,11.102,11.101,2.516e-05]
[1672709104874,8.12,11.102,11.089,8.11]
[1672709105087,8.12,11.101,11.089,8.11]
[1672709105399,0.0001,11.101,11.093,8.05]
[1672709105606,0.0001,11.101,11.098,2.0]
[1672709105607,0.06632986,11.101,11.098,2.0]
[1672709105823,49.1081,11.113,11.1,8.12]
[1672709106027,49.1081,11.113,11.101,2.0]
[1672709106242,8.07,11.112,11.101,2.0]
[1672709106769,8.07,11.112,11.103,0.07095163]
[1672709107818,8.12,11.118,11.106,8.11]
[1672709108137,8.12,11.118,11.108,0.06240129]
[1672709109606,8.03,11.119,11.108,8.17240129]
[1672709109814,8.03,11.119,11.11,0.06359596]
[1672709110341,2.0,11.124,11.11,0.06359596]
[1672709110552,2.0,11.124,11.113,0.0692532]
[1672709110763,8.06,11.116,11.113,0.0692532]
[1672709110971,8.06,11.116,11.111,0.06086007]
[1672709111287,8.06,11.116,11.11,0.06484336]
[1672709111601,8.06,11.116,11.109,0.06227027]
[1672709112230,8.11,11.115,11.109,0.06227027]
[1672709112754,10.11,11.111,11.1,8.11]
[1672709112960,8.03,11.107,11.097,8.11]
[1672709113384,2.0,11.113,11.101,8.11]
[1672709113595,8.03,11.113,11.103,8.1]
[1672709113913,0.06868845,11.112,11.104,0.0653078]
[1672709114651,0.06868845,11.112,11.104,8.1753078]
[1672709116543,0.06868845,11.112,11.107,8.08]
[1672709117595,8.11,11.119,11.108,10.11]
[1672709117909,8.11,11.123,11.113,8.11]
[1672709118533,2.0,11.131,11.114,2.06838373]
[1672709118748,2.0,11.131,11.119,0.06643865]
[1672709119064,8.06,11.128,11.119,0.06643865]
[1672709119268,48.8066,11.132,11.119,0.06643865]
[1672709119475,8.03,11.132,11.122,8.14149607]
[1672709119686,8.06,11.135,11.125,8.11]
[1672709119896,49.99993334,11.146,11.129,8.11]
[1672709119897,8.06,11.14,11.129,8.11]
[1672709120112,8.06,11.14,11.131,0.06879486]
[1672709120531,8.11,11.141,11.131,0.06879486]
[1672709120738,8.11,11.143,11.133,2.0]
[1672709120949,8.03,11.141,11.134,0.06932932]
[1672709122001,49.99993334,11.146,11.134,0.06932932]
[1672709122320,58.10993334,11.136,11.124,2.0]
[1672709122633,8.11,11.13,11.119,8.11]
[1672709122844,8.11,11.13,11.12,2.0]
[1672709123265,0.0615244,11.129,11.121,0.06158228]
[1672709124106,8.09,11.128,11.121,0.06158228]
[1672709125366,8.09,11.127,11.121,0.06158228]
[1672709125685,8.11,11.126,11.121,0.06158228]
[1672709128416,8.03,11.124,11.121,0.06158228]
[1672709128624,8.03,11.124,11.119,0.07055959]
[1672709128834,8.03,11.124,11.118,0.06879925]
[1672709129040,8.03,11.124,11.117,0.06228808]
[1672709135346,0.06993907,11.125,11.117,0.06228808]
[1672709135557,0.06993907,11.125,11.118,8.08]
[1672709135769,0.06993907,11.125,11.119,2.0]
[1672709136297,0.06993907,11.125,11.119,1.83597812]
[1672709138702,0.06993907,11.125,11.118,8.08]
[1672709144906,3.907e-05,11.125,11.124,8.1]
[1672709145122,8.06,11.136,11.124,8.1]
[1672709145330,8.06,11.136,11.125,8.08]
[1672709145542,8.06,11.136,11.126,2.0]
[1672709146059,8.06,11.136,11.127,0.06553051]
[1672709146486,8.09,11.137,11.127,0.06553051]
[1672709149220,8.11,11.139,11.128,8.11]
[1672709149428,8.11,11.14,11.13,0.07065813]
[1672709149638,8.11,11.14,11.13,2.07065813]
[1672709150795,8.08,11.141,11.13,2.07065813]
[1672709152477,8.08,11.143,11.131,8.03]
[1672709152891,8.08,11.143,11.133,0.06399391]
[1672709155516,8.04,11.147,11.133,50.06399391]
[1672709155733,49.9578,11.152,11.132,2.0]
[1672709155734,8.08,11.15,11.137,8.03]
[1672709156041,8.08,11.15,11.14,0.06901354]
[1672709157302,8.0104576,11.15,11.14,0.06901354]
[1672709162252,8.08,11.147,11.14,0.06901354]
[1672709165608,8.08,11.149,11.14,0.06901354]
[1672709167605,58.0378,11.152,11.14,8.14901354]
[1672709168238,8.04,11.151,11.14,8.14901354]
[1672709168546,8.04,11.151,11.14,0.06901354]
[1672709171486,8.08,11.147,11.14,0.06901354]
[1672709171805,8.03,11.144,11.14,0.06901354]
[1672709174429,8.04,11.146,11.14,0.06901354]
[1672709178635,8.08,11.149,11.14,0.06901354]
[1672709178845,8.08,11.15,11.14,0.06901354]
[1672709181364,8.08,11.146,11.14,0.06901354]
[1672709187980,8.03,11.143,11.14,1.354e-05]
[1672709188190,8.08,11.141,11.129,8.04]
[1672709188400,8.08,11.141,11.13,2.0]
[1672709188822,8.08,11.139,11.13,2.0]
[1672709189036,0.06833915,11.138,11.131,0.06908575]
[1672709190612,8.08,11.137,11.131,0.06908575]
[1672709191032,8.04,11.134,11.131,0.06908575]
[1672709191345,8.04,11.134,11.129,0.0625521]
[1672709191661,8.04,11.134,11.128,0.0710229]
[1672709191872,8.04,11.134,11.127,0.06141349]
[1672709194494,8.03,11.132,11.127,0.06141349]
[1672709194704,2.0,11.131,11.127,0.06141349]
[1672709195859,8.03,11.132,11.127,0.06141349]
[1672709196074,50.4881,11.134,11.127,0.06141349]
[1672709197334,0.06274209,11.135,11.127,0.06141349]
[1672709202697,8.08,11.131,11.127,0.06141349]
[1672709205531,2.0,11.13,11.119,8.08]
[1672709205742,8.08,11.128,11.117,8.02]
[1672709206587,0.07148019,11.126,11.119,0.0711954]
[1672709209322,0.07148019,11.126,11.119,8.1011954]
[1672709210373,0.07148019,11.126,11.119,0.0711954]
[1672709217305,8.02,11.125,11.119,0.0711954]
[1672709217725,0.07148019,11.126,11.119,0.0711954]
[1672709220663,8.04,11.12,11.119,9.54e-05]
[1672709220879,8.04,11.12,11.109,8.04]
[1672709221295,8.04,11.12,11.111,8.1]
[1672709221721,0.06894569,11.119,11.112,0.06822404]
[1672709242316,0.06894569,11.119,11.113,8.04]
[1672709243159,0.06894569,11.119,11.114,10.1]
[1672709243370,4.569e-05,11.119,11.117,8.04]
[1672709243579,8.1,11.126,11.117,8.04]
[1672709244203,0.06345212,11.125,11.117,8.04]
[1672709244418,0.06345212,11.125,11.118,0.06737422]
[1672709249359,0.06345212,11.125,11.119,8.04]
[1672709250094,8.04,11.133,11.123,8.08]
[1672709250620,54.9454,11.141,11.129,2.0]
[1672709250621,8.07,11.138,11.129,2.0]
[1672709251248,0.06659244,11.137,11.13,0.06244188]
[1672709252613,8.1,11.134,11.13,4.188e-05]
[1672709252820,8.04,11.131,11.13,4.188e-05]
[1672709253137,8.04,11.131,11.12,8.08]
[1672709253771,0.06136144,11.129,11.122,0.06033631]
[1672709275096,0.06136144,11.129,11.122,8.09033631]
[1672709279722,0.06136144,11.129,11.123,8.09]
[1672709281403,2.0,11.122,11.11,8.09]
[1672709281613,8.04,11.118,11.11,8.09]
[1672709282238,8.11059424,11.118,11.11,8.15095429]
[1672709284346,8.04,11.117,11.11,0.06095429]
[1672709285710,8.16059424,11.118,11.11,8.09095429]
[1672709289915,8.09,11.117,11.11,0.06095429]
[1672709296846,8.09,11.114,11.11,0.06095429]
[1672709297268,8.09,11.111,11.11,5.429e-05]
[1672709297582,8.09,11.111,11.101,8.09]
[1672709297786,8.09,11.109,11.101,8.09]
[1672709298213,0.07109107,11.109,11.106,8.03]
[1672709298422,8.09,11.114,11.106,8.03]
[1672709299260,8.15909118,11.114,11.106,8.0996195]
[1672709303680,0.06909118,11.114,11.107,8.09]
[1672709304623,8.10909118,11.114,11.106,8.1596195]
[1672709305560,8.09,11.11,11.106,0.0696195]
[1672709305985,8.09,11.112,11.106,0.0696195]
[1672709306830,8.09,11.113,11.106,0.0696195]
[1672709308296,0.06909118,11.114,11.107,8.04]
[1672709313032,8.09,11.115,11.114,0.01777586]
[1672709313872,8.09,11.115,11.107,8.04]
[1672709314078,8.16139444,11.115,11.107,8.10746985]
[1672709315659,2.0,11.114,11.107,8.10746985]
[1672709315872,8.09,11.109,11.101,8.09]
[1672709316815,8.16099936,11.109,11.101,8.15946947]
[1672709317338,0.07099936,11.109,11.104,8.09]
[1672709318393,0.07099936,11.109,11.103,50.0]
[1672709318812,8.09,11.107,11.101,0.06946947]
[1672709321966,8.09,11.102,11.083,50.0]
[1672709322281,8.09,11.092,11.084,8.09]
[1672709322805,8.04,11.093,11.085,8.09]
[1672709323121,0.06567427,11.093,11.088,8.09]
[1672709323333,8.09,11.103,11.093,2.0]
[1672709323543,8.09,11.103,11.095,8.08]
[1672709324173,2.0,11.104,11.097,8.09]
[1672709324386,0.06227728,11.104,11.097,8.15238146]
[1672709324908,8.10227728,11.104,11.097,0.06238146]
[1672709327328,8.09,11.102,11.097,0.06238146]
[1672709327536,8.09,11.1,11.097,0.06238146]
[1672709327746,8.09,11.1,11.095,0.06410138]
[1672709327957,8.09,11.1,11.094,0.06630669]
[1672709329002,8.09,11.099,11.094,0.06630669]
[1672709329218,8.09,11.096,11.094,0.06630669]
[1672709329429,8.09,11.096,11.091,0.06077691]
[1672709329639,8.09,11.096,11.09,0.06864051]
[1672709329850,8.09,11.096,11.089,0.06193331]
[1672709330057,8.09,11.092,11.089,0.06193331]
[1672709330269,8.09,11.092,11.087,0.06739651]
[1672709330473,8.09,11.092,11.086,0.06906859]
[1672709330899,8.09,11.09,11.086,0.06906859]
[1672709332054,0.00314958,11.086,11.083,50.0]
[1672709333102,0.00314958,11.086,11.085,8.08]
[1672709333317,8.09,11.095,11.085,8.08]
[1672709333528,8.09,11.093,11.086,0.07038007]
[1672709334053,8.04,11.092,11.086,0.07038007]
[1672709335310,8.09,11.093,11.086,0.07038007]
[1672709335944,0.0671832,11.094,11.087,8.09]
[1672709336674,8.09,11.093,11.086,0.07038007]
[1672709336890,8.09,11.09,11.086,0.07038007]
[1672709338048,32.36,11.084,11.07,8.09]
[1672709338259,8.09,11.078,11.073,50.0]
[1672709338671,8.04,11.074,11.064,8.09]
[1672709338883,8.04,11.074,11.062,50.0]
[1672709338884,8.09,11.069,11.062,50.0]
[1672709339092,8.15738912,11.069,11.062,50.06084669]
[1672709339515,0.06738912,11.069,11.063,3.31408516]
[1672709340254,0.06738912,11.069,11.065,8.08]
[1672709340457,0.06738912,11.069,11.066,8.09]
[1672709340778,0.06269118,11.071,11.068,8.04]
[1672709340985,0.06297821,11.073,11.069,8.04]
[1672709341305,8.09,11.084,11.072,58.04]
[1672709341508,8.09,11.081,11.069,3.31408516]
[1672709341723,2.0,11.08,11.066,8.09]
[1672709341931,8.09,11.075,11.066,8.09]
[1672709342141,8.09,11.075,11.067,3.313983]
[1672709342353,0.06134863,11.074,11.067,3.38337818]
[1672709342670,0.06134863,11.074,11.068,8.08]
[1672709343090,8.09,11.08,11.072,50.0]
[1672709343404,2.0,11.081,11.073,8.09]
[1672709344245,2.06637545,11.081,11.073,8.15248996]
[1672709344449,2.06637545,11.081,11.073,0.06248996]
[1672709344868,0.06637545,11.081,11.073,0.06248996]
[1672709345401,0.06637545,11.081,11.074,8.06]
[1672709345611,0.06637545,11.081,11.076,8.06]
[1672709348345,0.06637545,11.081,11.077,8.08]
[1672709348555,8.03,11.091,11.08,8.08]
[1672709348868,2.0,11.09,11.08,8.08]
[1672709349500,0.06850075,11.089,11.081,0.06416218]
[1672709350025,0.06850075,11.089,11.084,8.06]
[1672709350551,8.08,11.096,11.085,10.06]
[1672709350758,10.07,11.095,11.085,2.0]
[1672709351493,0.06725702,11.094,11.086,0.06423602]
[1672709351807,8.07,11.093,11.086,0.06423602]
[1672709352016,8.08,11.087,11.077,8.08]
[1672709352545,8.04,11.09,11.079,8.02]
[1672709352858,8.07,11.091,11.08,8.08]
[1672709353068,0.0650892,11.089,11.082,0.06349997]
[1672709353381,0.0650892,11.089,11.082,58.12349997]
[1672709353597,51.515,11.095,11.086,8.08]
[1672709353810,8.03,11.097,11.086,8.08]
[1672709354118,8.08,11.098,11.087,8.02]
[1672709354333,51.515,11.105,11.087,8.02]
[1672709354334,8.07,11.101,11.09,8.08]
[1672709354544,8.07,11.1,11.09,8.08]
[1672709354745,8.04,11.091,11.075,8.08]
[1672709354960,2.0,11.085,11.075,8.08]
[1672709355381,8.04,11.088,11.077,8.06]
[1672709355585,8.04,11.094,11.082,8.08]
[1672709355800,0.07104853,11.092,11.084,8.09845315]
[1672709357273,0.07104853,11.092,11.084,0.06845315]
[1672709357484,8.14104853,11.092,11.084,0.06845315]
[1672709358222,0.07104853,11.092,11.084,8.14845315]
[1672709358431,0.07104853,11.092,11.085,8.03]
[1672709360212,2.0,11.099,11.089,8.08]
[1672709360428,8.07,11.101,11.089,8.08]
[1672709361373,51.99993334,11.106,11.087,52.4853]
[1672709361374,8.03,11.106,11.095,8.03]
[1672709361790,2.0,11.105,11.095,8.03]
[1672709362316,8.07,11.101,11.089,8.08]
[1672709362530,8.08,11.099,11.088,2.0]
[1672709362740,8.08,11.099,11.091,0.06865777]
[1672709363793,8.07,11.103,11.092,8.08]
[1672709363997,8.03,11.106,11.095,8.03]
[1672709364314,8.03,11.106,11.097,0.06604674]
[1672709365155,2.0,11.114,11.097,0.06604674]
[1672709365156,8.07,11.109,11.097,8.09604674]
[1672709365368,8.07,11.109,11.099,0.07122716]
[1672709365682,8.04,11.11,11.099,8.15122716]
[1672709365889,8.04,11.11,11.101,0.06080407]
[1672709367891,8.03,11.109,11.101,0.06080407]
[1672709368096,8.03,11.109,11.101,0.06030988]
[1672709372304,8.03,11.112,11.101,8.09030988]
[1672709372617,8.07,11.111,11.103,0.06404194]
[1672709373352,8.04,11.109,11.103,0.06404194]
[1672709373877,7.84418304,11.109,11.103,0.06404194]
[1672709374089,8.07,11.108,11.103,0.06404194]
[1672709374723,2.06655495,11.107,11.096,2.0]
[1672709374934,8.07,11.103,11.091,8.06]
[1672709375145,8.07,11.1,11.091,8.06]
[1672709375354,8.07,11.1,11.088,8.06]
[1672709375878,0.06676495,11.098,11.09,0.06815754]
[1672709386285,8.07,11.107,11.095,8.03]
[1672709386496,8.07,11.107,11.096,2.0]
[1672709387545,8.04,11.105,11.098,0.06658926]
[1672709387756,8.08,11.103,11.098,0.06487075]
[1672709387967,8.08,11.103,11.097,0.07111315]
[1672709388177,8.08,11.103,11.096,0.06938458]
[1672709389340,8.08,11.102,11.096,8.458e-05]
[1672709389645,8.07,11.1,11.096,8.458e-05]
[1672709395427,8.07,11.097,11.096,8.458e-05]
[1672709395634,8.07,11.097,11.093,0.06226142]
[1672709395845,8.08,11.095,11.091,0.06748021]
[1672709396056,8.08,11.095,11.089,0.06869351]
[1672709398371,8.14058634,11.097,11.089,0.06869351]
[1672709399106,0.07058634,11.097,11.089,0.06869351]
[1672709402786,0.07058634,11.097,11.092,8.06]
[1672709403628,8.07,11.102,11.097,0.05318423]
[1672709405938,8.07,11.103,11.097,0.05318423]
[1672709406673,8.04,11.106,11.097,0.05318423]
[1672709406989,8.08,11.108,11.097,8.13318423]
[1672709407199,8.08,11.108,11.099,0.06542367]
[1672709407409,8.08,11.11,11.099,8.14542367]
[1672709407620,8.08,11.11,11.101,0.0650372]
[1672709408770,8.04,11.108,11.101,0.0650372]
[1672709408983,8.04,11.108,11.101,0.06050207]
[1672709410669,8.08,11.106,11.101,0.06050207]
[1672709410879,8.08,11.106,11.1,0.06934894]
[1672709411089,8.08,11.106,11.099,0.06274949]
[1672709412136,8.07,11.107,11.099,0.06274949]
[1672709412344,8.03,11.109,11.099,2.0606553]
[1672709412554,8.03,11.109,11.1,0.06673679]
[1672709416133,8.03,11.11,11.109,0.16474003]
[1672709416448,8.08,11.112,11.109,0.16474003]
[1672709421284,7.89512387,11.112,11.109,0.16474003]
[1672709421803,8.04,11.11,11.106,0.07097804]
[1672709422756,8.07,11.113,11.106,0.07097804]
[1672709423280,8.07,11.111,11.106,0.07097804]
[1672709430431,8.08,11.109,11.106,0.07097804]
[1672709430635,10.07,11.108,11.097,8.13318423]
[1672709430949,2.0,11.107,11.097,8.13318423]
[1672709431374,8.08,11.106,11.097,0.05318423]
[1672709431587,0.06335362,11.105,11.098,0.06067044]
[1672709433266,8.07,11.103,11.098,0.06067044]
[1672709433481,8.08,11.102,11.098,0.06067044]
[1672709437467,8.08,11.104,11.098,0.06067044]
[1672709440410,0.06335362,11.105,11.098,0.06067044]
[1672709440615,0.06335362,11.105,11.099,8.08]
[1672709448085,0.06335362,11.105,11.101,8.02]
[1672709450388,5.362e-05,11.105,11.102,2.0]
[1672709450605,51.6344,11.114,11.104,8.08]
[1672709450814,8.04,11.115,11.104,8.08]
[1672709451338,8.04,11.115,11.106,0.0691094]
[1672709453546,8.07,11.113,11.106,0.0691094]
[1672709454805,49.99993334,11.116,11.106,0.0691094]
[1672709454806,8.07,11.115,11.106,0.0691094]
[1672709455016,2.0,11.114,11.106,0.0691094]
[1672709455430,8.08,11.118,11.107,8.08]
[1672709455647,8.08,11.118,11.109,0.0714056]
[1672709455857,8.07,11.119,11.109,0.0714056]
[1672709456169,8.07,11.119,11.11,0.06061965]
[1672709457222,8.08,11.118,11.11,0.06061965]
[1672709457427,8.03,11.112,11.11,0.06061965]
[1672709457641,8.03,11.112,11.107,0.06303483]
[1672709457852,8.03,11.112,11.106,0.07006995]
[1672709458060,8.03,11.112,11.105,0.06929207]
[1672709459634,8.1,11.111,11.105,0.06929207]
[1672709460263,0.06703491,11.105,11.103,61.2406]
[1672709460796,8.1,11.111,11.103,61.2406]
[1672709461209,8.16258133,11.111,11.103,61.2406]
[1672709461421,8.16258133,11.111,11.103,61.31114692]
[1672709463521,8.16258133,11.111,11.103,0.07054692]
[1672709463728,8.06,11.109,11.103,0.07054692]
[1672709466890,8.16258133,11.111,11.103,0.07054692]
[1672709474348,8.09728604,11.111,11.103,0.07054692]
[1672709474769,8.1,11.109,11.103,0.07054692]
[1672709475084,8.1,11.107,11.103,0.07054692]
[1672709476030,8.06,11.109,11.103,0.07054692]
[1672709477178,2.0,11.113,11.103,0.07054692]
[1672709477394,8.1,11.11,11.103,0.07054692]
[1672709483284,8.09,11.108,11.103,0.07054692]
[1672709483495,8.06,11.106,11.103,0.07054692]
[1672709483698,8.06,11.106,11.101,0.0612401]
[1672709483909,8.12,11.102,11.1,0.06740907]
[1672709484125,8.12,11.102,11.097,0.06215871]
[1672709484334,8.12,11.102,11.096,0.06455312]
[1672709488537,8.1,11.1,11.096,0.06455312]
[1672709490319,52.5916,11.105,11.096,0.06455312]
[1672709490320,8.09,11.098,11.096,0.06455312]
[1672709490529,8.09,11.098,11.093,0.06939604]
[1672709490746,8.09,11.098,11.092,0.07101101]
[1672709491271,8.09,11.097,11.092,0.07101101]
[1672709492739,8.12,11.096,11.092,0.07101101]
[1672709492948,8.09,11.093,11.092,0.07101101]
[1672709493161,8.09,11.093,11.089,0.06159656]
[1672709493478,8.09,11.093,11.087,0.06703887]
[1672709497787,8.09,11.091,11.087,0.06703887]
[1672709498101,8.1,11.089,11.087,0.06703887]
[1672709498305,8.1,11.089,11.084,0.06327458]
[1672709498734,8.09,11.087,11.084,0.06327458]
[1672709498945,8.09,11.087,11.082,0.06077346]
[1672709499256,8.06,11.094,11.086,8.12]
[1672709499468,2.0,11.093,11.086,8.18055587]
[1672709500202,8.1,11.092,11.086,0.06055587]
[1672709501876,8.1,11.099,11.086,0.06055587]
[1672709502096,8.09,11.099,11.091,8.12]
[1672709502511,8.1,11.098,11.09,8.05]
[1672709502724,8.09,11.101,11.093,8.12]
[1672709502934,8.09,11.101,11.093,8.18657947]
[1672709503458,8.06,11.099,11.093,0.06657947]
[1672709503669,8.06,11.099,11.092,0.06535241]
[1672709503874,8.09,11.098,11.092,0.06535241]
[1672709504084,7.89558475,11.094,11.091,0.0603089]
[1672709504299,8.12,11.094,11.089,0.0653189]
[1672709504504,8.12,11.094,11.088,0.0630158]
[1672709505872,8.09,11.092,11.088,0.0630158]
[1672709506607,8.12,11.09,11.088,0.0630158]
[1672709506818,8.12,11.09,11.085,0.07029489]
[1672709507138,8.12,11.09,11.084,0.06034431]
[1672709515337,8.1,11.089,11.084,0.06034431]
[1672709515543,8.1,11.087,11.084,0.06034431]
[1672709515861,8.1,11.087,11.082,0.06131567]
[1672709516069,8.1,11.087,11.081,0.0647294]
[1672709516280,8.1,11.086,11.081,0.0647294]
[1672709519959,8.12,11.082,11.081,0.0647294]
[1672709520170,8.12,11.082,11.078,0.06746552]
[1672709520380,8.12,11.082,11.076,3.37939868]
[1672709520797,8.12,11.082,11.076,0.06559855]
[1672709522170,8.1,11.083,11.076,0.06559855]
[1672709522692,2.0,11.082,11.076,0.06559855]
[1672709522905,2.0,11.082,11.076,3.37939868]
[1672709525001,8.06,11.085,11.076,11.49939868]
[1672709525215,2.0,11.086,11.08,8.12]
[1672709525427,8.1,11.088,11.08,8.12]
[1672709525637,8.06,11.09,11.081,8.12]
[1672709525846,8.06,11.09,11.082,0.06784455]
[1672709526059,57.4933,11.091,11.083,8.12]
[1672709526270,8.1,11.093,11.085,8.05]
[1672709526474,8.12,11.096,11.087,8.12]
[1672709526789,8.09,11.099,11.09,8.12]
[1672709527002,8.1,11.1,11.092,8.12]
[1672709527212,8.1,11.1,11.092,8.18483315]
[1672709527633,8.00488284,11.1,11.092,8.18483315]
[1672709528579,8.09,11.099,11.092,0.06483315]
[1672709529419,8.09,11.1,11.092,8.11483315]
[1672709529942,8.09,11.102,11.094,8.12]
[1672709530153,8.09,11.102,11.094,8.1843515]
[1672709530568,8.09,11.1,11.094,0.0643515]
[1672709530786,8.09,11.099,11.093,0.06697151]
[1672709530992,8.09,11.099,11.092,0.07102229]
[1672709531617,8.1,11.1,11.092,8.19102229]
[1672709531832,8.1,11.1,11.092,8.19055464]
[1672709533409,8.1,11.102,11.093,8.12]
[1672709533614,8.1,11.102,11.094,0.06237169]
[1672709535512,8.09,11.1,11.094,0.06237169]
[1672709537721,8.06,11.103,11.095,8.05]
[1672709537934,8.06,11.103,11.095,8.12121479]
[1672709546236,8.09,11.105,11.097,8.12]
[1672709546549,8.09,11.105,11.097,8.18684909]
[1672709546759,8.1,11.11,11.105,0.12565862]
[1672709546979,8.09,11.111,11.105,0.12565862]
[1672709551804,7.86704055,11.111,11.105,0.12565862]
[1672709556214,8.12,11.113,11.105,0.12565862]
[1672709556529,8.12,11.113,11.105,0.19416416]
[1672709558947,8.12,11.115,11.105,0.19416416]
[1672709567775,8.12,11.112,11.105,0.19416416]
[1672709568511,8.12,11.113,11.105,0.19416416]
[1672709571450,60.2592,11.116,11.105,8.31416416]
[1672709571661,8.12,11.116,11.105,8.31416416]
[1672709571978,491.96525032,11.141,11.108,8.05]
[1672709571979,8.12,11.12,11.108,8.05]
[1672709572188,8.12,11.12,11.109,2.0]
[1672709572505,8.12,11.12,11.11,0.06632683]
[1672709577967,8.12,11.115,11.11,0.06632683]
[1672709578171,8.12,11.114,11.11,0.06632683]
[1672709579228,8.1,11.115,11.11,0.06632683]
[1672709588367,58.11993334,11.118,11.11,0.06632683]
[1672709588683,8.12,11.116,11.11,0.06632683]
[1672709589629,49.99993334,11.118,11.11,0.06632683]
[1672709589630,8.12,11.115,11.11,0.06632683]
[1672709593204,8.12,11.117,11.11,0.06632683]
[1672709593416,7.9457165,11.117,11.11,2.06632683]
[1672709596254,8.12,11.12,11.112,8.12]
[1672709596465,8.12,11.122,11.113,8.12]
[1672709603610,49.99993334,11.138,11.113,24.36]
[1672709603924,49.99993334,11.138,11.126,8.12]
[1672709603925,8.12,11.134,11.126,8.12]
[1672709604238,8.12,11.134,11.126,8.18538702]
[1672709606659,8.1,11.133,11.126,0.06538702]
[1672709607708,8.08,11.131,11.126,0.06538702]
[1672709607919,8.12,11.127,11.126,8.702e-05]
[1672709608128,8.12,11.127,11.118,8.12]
[1672709609072,0.06032634,11.126,11.119,0.06104201]
[1672709612020,0.06032634,11.126,11.12,8.08]
[1672709612544,8.12,11.133,11.125,8.12]
[1672709613489,8.12,11.133,11.125,8.18033587]
[1672709615168,8.12,11.133,11.125,0.06033587]
[1672709615380,8.08,11.134,11.126,8.12]
[1672709615591,8.1,11.133,11.125,8.18033587]
[1672709616742,8.1,11.133,11.125,0.06033587]
[1672709616959,8.08,11.131,11.125,0.06033587]
[1672709621267,8.12,11.134,11.126,8.12]
[1672709622108,8.09,11.135,11.125,0.06033587]
[1672709622311,8.09,11.137,11.126,8.04]
[1672709622738,8.09,11.137,11.128,0.06941712]
[1672709627568,8.09,11.14,11.137,0.22762553]
[1672709627782,49.0346,11.142,11.137,0.22762553]
[1672709627996,8.06,11.144,11.137,0.22762553]
[1672709628199,8.09,11.143,11.137,0.22762553]
[1672709628730,8.09,11.144,11.137,0.22762553]
[1672709628938,8.09,11.146,11.137,0.22762553]
[1672709629463,2.0,11.145,11.137,0.22762553]
[1672709629780,8.09,11.143,11.137,0.22762553]
[1672709630403,8.09,11.14,11.137,0.22762553]
[1672709630720,8.09,11.14,11.137,2.553e-05]
[1672709630934,8.09,11.14,11.136,0.06911507]
[1672709631559,8.09,11.142,11.136,0.06911507]
[1672709632510,2.0,11.141,11.136,0.06911507]
[1672709634189,8.09,11.142,11.136,0.06911507]
[1672709634400,0.00610317,11.136,11.131,8.09]
[1672709634611,0.00610317,11.136,11.13,8.04]
[1672709635033,0.00610317,11.136,11.131,8.09]
[1672709636928,0.00610317,11.136,11.13,0.07021276]